Cogmind - Beta 9.6 @@@ ROGUE MODE // 2020.07.13 @ 22:47:42 Player: dhtilly Result: Destroyed by S-10 Pest with Light Assault Rifle Performance ------------- Evolutions (0) 0 Regions Visited (2) 400 Robots Destroyed (18) 90 Value Destroyed (366) 366 Prototype IDs (3) 60 Alien Tech Used (0) 0 Bonus (-118) -118 TOTAL SCORE: 798 Bonus ------- Friendly Fire -118 Cogmind --------- Core Integrity 0/250 Matter 290/300 Energy 230/250 System Corruption 6% Temperature Cool (51) Movement Treading (180) Ox1 Location -10/Mines Parts ------- > --- POWER (1) -------- Ion Engine > --- PROPULSION (2) --- Light Treads > --- UTILITY (2) ------ Large Storage Unit Weapon Shielding > --- WEAPON (2) ------- Small Laser Assault Rifle > --- INVENTORY (10) --- Light Treads Heat Sink Structural Scanner Sensor Array Sensor Array Assault Rifle Mining Laser Peak State ------------ > --- POWER ------------ Ion Engine > --- PROPULSION ------- Light Treads Light Treads > --- UTILITY ---------- Large Storage Unit Sensor Array > --- WEAPON ----------- Assault Rifle Assault Rifle > --- INVENTORY -------- Ion Engine Light Treads Light Treads Heat Sink Structural Scanner Sensor Array Weapon Shielding Small Laser Assault Rifle Mining Laser [Rating: 8] Favorites ----------- Power Ion Engine Engine Ion Engine Propulsion Light Treads Treads Light Treads Utility Large Storage Unit Device Sensor Array Storage Large Storage Unit Protection Weapon Shielding Weapon Assault Rifle Energy Gun Small Laser Ballistic Gun Assault Rifle Build | -11 -10 -10 ------- Run | Scr Mat Min Slots Evolved . | . . . Power . | . . . Propulsion . | . . . Utility . | . . . Weapon . | . . . Parts Attached 17 | 6 5 6 Power 3 | 1 1 1 Engine 3 | 1 1 1 Core . | . . . Reactor . | . . . Propulsion 3 | 2 . 1 Treads 3 | 2 . 1 Leg . | . . . Wheel . | . . . Hover . | . . . Flight . | . . . Utility 5 | 1 3 1 Device 1 | . 1 . Storage 2 | 1 1 . Processor . | . . . Hackware . | . . . Protection 2 | . 1 1 Artifact . | . . . Weapon 6 | 2 1 3 Energy Gun 2 | . . 2 Energy Cannon . | . . . Ballistic Gun 4 | 2 1 1 Ballistic Cannon . | . . . Launcher . | . . . Special Weapon . | . . . Impact Weapon . | . . . Slashing Weapon . | . . . Piercing Weapon . | . . . Special Melee Weapon . | . . . Unidentified Prototypes . | . . . Parts Lost 4 | . . 4 Power 1 | . . 1 Propulsion 2 | . . 2 Utility . | . . . Weapon 1 | . . 1 Highest Loss Streak 2 | . . 2 Average Slot Usage (%) 95 | . 93 98 Engine 14 | . 14 14 Treads 27 | . 28 26 Storage 14 | . 14 14 Protection 9 | . 7 14 Energy Gun 1 | . . 4 Ballistic Gun 26 | . 28 23 Naked Turns . | . . . Heaviest Build 26 | 13 26 26 Greatest Support 40 | 40 40 40 Greatest Overweight (x) 1 | . . 1 Average Overweight (x) . | . . . Largest Inventory Capacity 10 | 6 10 10 Average Capacity 8 | 5 8 10 Most Carried 10 | 2 10 10 Average Carried 6 | 1 5 9 Final Capacity 10 | 6 10 10 Final Carried 10 | 2 10 7 Class Distribution -------------------- 100% | Mutant Dominant Class ---------------- Mutant | -10/Materials Mutant | -10/Mines Resources | -11 -10 -10 ----------- Run | Scr Mat Min Matter Collected 634 | 183 217 234 Remotely . | . . . Salvage Created 562 | . 223 339 Parts 37 | . 15 22 Haulers Intercepted 1 | . 1 . Recyclers Shooed . | . . . Parts Field Recycled . | . . . Retrieved Matter . | . . . Parts Self-Destructed . | . . . Prevented . | . . . Kills | -11 -10 -10 ------- Run | Scr Mat Min Combat Hostiles Destroyed 16 | . 6 10 Guns 16 | . 6 10 Classes Destroyed 5 | . 3 2 Hauler 1 | . 1 . Swarmer 8 | . 3 5 Grunt 7 | . 3 4 Assembled 1 | . . 1 Guerrilla 1 | . . 1 Best Kill Streak 3 | . 3 3 Combat Bots Only 3 | . 3 3 Max Kills in Single Turn 2 | . 1 2 Gunslinging 1 | . . 1 Exploded . | . . . Melee . | . . . Uniques/NPCs Destroyed . | . . . Combat | -11 -10 -10 -------- Run | Scr Mat Min Damage Taken 972 | . 115 857 Core 252 | . 28 224 Absorbed by Shields . | . . . Core Remaining (%) 100 | 100 . . Volleys Fired 58 | . 15 43 Largest 2 | . 2 2 Hottest 80 | . 40 80 Shots Fired 115 | . 30 85 Gun 115 | . 30 85 Cannon . | . . . Launcher . | . . . Special . | . . . Kinetic 98 | . 30 68 Thermal 17 | . . 17 Explosive . | . . . Electromagnetic . | . . . Robot Hit Streak 12 | . 9 12 Robot Miss Streak 3 | . 2 3 Penetration Max . | . . . Secondary Targets 1 | . . 1 Max Gunslinging Chain 1 | . . 1 Shots Hit Robots 86 | . 23 63 Core Hits 31 | . 11 20 Critical Hits . | . . . Critical Kills . | . . . Critical Parts Destroyed . | . . . Melee Attacks . | . . . Impact . | . . . Slashing . | . . . Piercing . | . . . Sneak Attacks . | . . . Combat Hostiles . | . . . Follow-up Attacks . | . . . Damage Inflicted 1010 | . 261 749 Guns 1001 | . 261 740 Cannons . | . . . Explosions . | . . . Melee . | . . . Ramming 9 | . . 9 Kinetic 892 | . 261 631 Thermal 109 | . . 109 Explosive . | . . . Electromagnetic . | . . . Impact . | . . . Slashing . | . . . Piercing . | . . . Highest Corruption 6 | . . 6 Average Corruption 5 | . . 5 Corruption Purged . | . . . Effects 3 | . . 3 Data Loss (minor) 1 | . . 1 Targeting Errors 1 | . . 1 Weapon Failures 1 | . . 1 Overload Shots . | . . . Overflow Damage . | . . . Projectiles . | . . . Explosions . | . . . Melee . | . . . Knockbacks . | . . . Impact . | . . . Kinetic . | . . . Secondary . | . . . Self-Inflicted Damage . | . . . Shots . | . . . Rammed 1 | . . 1 Targets Rammed 1 | . . 1 Kicked . | . . . Crushed . | . . . Highest Temperature 54 | . . 54 Average Temperature 19 | . . 19 Received Heat Transfer 234 | . 12 222 Siege Activations . | . . . Robots Corrupted . | . . . Combat Hostiles . | . . . Parts Fried . | . . . Impact Corruptions . | . . . Robots Melted . | . . . Combat Hostiles . | . . . Parts Melted . | . . . Heat Transferred 250 | . . 250 Parts Sabotaged . | . . . Parts Stolen . | . . . Parts Stripped . | . . . Power Chain Reactions . | . . . Missiles Intercepted . | . . . Alert | -11 -10 -10 ------- Run | Scr Mat Min Peak Influence 269 | . 182 269 Average Influence 84 | . 74 115 Maximum Alert Level 1 | . . 1 Low Security (%) 95 | 100 100 86 Level 1 4 | . . 13 Level 2 . | . . . Level 3 . | . . . Level 4 . | . . . Level 5 . | . . . High Security . | . . . Max Security . | . . . Squads Dispatched 2 | . 2 . Investigation 2 | . 2 . Extermination . | . . . Reinforcement . | . . . Assault . | . . . Garrison . | . . . Intercept . | . . . Construction Impeded . | . . . Haulers Reinforced . | . . . Stealth | -11 -10 -10 --------- Run | Scr Mat Min Distress Signals . | . . . Communications Jammed . | . . . Distress Signals . | . . . Times Spotted 38 | . 11 27 Peak Tracking Total 9 | . 5 9 Tactical Retreats 4 | . . 4 Traps | -11 -10 -10 ------- Run | Scr Mat Min Traps Triggered . | . . . Indirectly . | . . . Trap Hack Attempts . | . . . Triggered . | . . . Disarmed . | . . . Reprogrammed . | . . . Reused . | . . . Traps Extracted . | . . . Installed . | . . . Triggered . | . . . Machines | -11 -10 -10 ---------- Run | Scr Mat Min Machines Disabled 2 | . . 2 Max in Single Turn 1 | . . 1 Machines Sabotaged . | . . . Garrisons Compromised . | . . . Overloaded Fab Kills . | . . . Fab Network Shutdowns . | . . . Hacking | -11 -10 -10 --------- Run | Scr Mat Min Machines Accessed 4 | . 4 . Terminals 4 | . 4 . Fabricators . | . . . Repair Stations . | . . . Recycling Units . | . . . Scanalyzers . | . . . Garrison Access . | . . . Total Hacks 12 | . 12 . Successful 6 | . 6 . Failed 6 | . 6 . Catastrophic . | . . . Database Lockouts . | . . . Manual . | . . . Terminals 12 | . 12 . Fabricators . | . . . Repair Stations . | . . . Recycling Units . | . . . Scanalyzers . | . . . Garrison Access . | . . . Terminal Hacks 6 | . 6 . Prototype ID Bank 1 | . 1 . Emergency Access Points 2 | . 2 . Alert Level 1 | . 1 . Locate Traps 1 | . 1 . Registered Prototypes 1 | . 1 . Fabricator Hacks . | . . . Repair Station Hacks . | . . . Recycling Unit Hacks . | . . . Scanalyzer . | . . . Garrison Access Hacks . | . . . Unauthorized Hacks . | . . . Terminals . | . . . Fabricators . | . . . Repair Stations . | . . . Recycling Units . | . . . Scanalyzers . | . . . Garrison Access . | . . . Data Cores Recovered . | . . . Used . | . . . Hacking Detections 4 | . 4 . Full Trace Events 1 | . 1 . Feedback Events . | . . . Feedback Blocked . | . . . Robot Schematics Acquired . | . . . Robots Built . | . . . Matter . | . . . Time . | . . . Total Robot Build Rating . | . . . Part Schematics Acquired . | . . . Parts Built . | . . . Matter . | . . . Time . | . . . Total Part Build Rating . | . . . Parts Repaired . | . . . Time . | . . . Parts Recycled . | . . . Recycled Matter . | . . . Retrieved Matter . | . . . Retrieved Components . | . . . Parts Scanalyzed . | . . . Part Schematics Acquired . | . . . Parts Damaged . | . . . Bothacking | -11 -10 -10 ------------ Run | Scr Mat Min Used RIF Installer . | . . . Robots Hacked . | . . . Non-combat . | . . . Combat . | . . . Robot Hacks Applied . | . . . Relay Couplers Released . | . . . Robots Rewired . | . . . Allies Hacked . | . . . Hacks Repelled . | . . . Allies | -11 -10 -10 -------- Run | Scr Mat Min Total Allies . | . . . Largest Group . | . . . Highest-Rated Group . | . . . Highest-Rated Ally . | . . . Total Orders . | . . . Ally Attacks . | . . . Total Damage . | . . . Kills . | . . . Allies Corrupted . | . . . Allies Melted . | . . . Intel | -11 -10 -10 ------- Run | Scr Mat Min Robot Analysis Total . | . . . Derelict Logs Recovered . | . . . Drone Launches . | . . . Drone Recoveries . | . . . Exploration | -11 -10 -10 ------------- Run | Scr Mat Min Turns Passed 1287 | 75 753 459 Spaces Moved 658 | 44 420 194 Core 5 | 5 . . Treads 653 | 39 420 194 Legs . | . . . Wheels . | . . . Hover . | . . . Flight . | . . . Fastest Speed 50 | 50 160 160 Average Speed 159 | 147 160 162 Slowest Speed 180 | 160 160 180 Overloaded Moves . | . . . Propulsion Burnouts . | . . . Robots Hopped . | . . . Cave-ins Triggered . | . . . Exploration Rate (%) 42 | 4 80 43 Regions Visited 2 Branch Regions 1 Pre-discovered Areas . | . . . Known Exits Taken . | . . . Unknown Exits Taken 2 | 1 1 . Scrap Searched . | . . . Spaces Dug . | . . . Terrain Destroyed . | . . . Melee . | . . . Projectile . | . . . AOE . | . . . Actions | -11 -10 -10 --------- Run | Scr Mat Min Total 777 | 51 474 252 Wait 21 | . 15 6 Move 656 | 43 419 194 Hop . | . . . Pick Up 14 | 2 12 . Fast Attach 8 | 6 1 1 Attach 6 | . 2 4 Detach 3 | . 2 1 Swap 3 | . 2 1 Drop 7 | . 6 1 Fire 58 | . 15 43 Melee . | . . . Ram . | . . . Kick . | . . . Crush 1 | . . 1 Escape Stasis . | . . . Rewire . | . . . Trap . | . . . Miscellaneous . | . . . Route ------- -11/Scrapyard -10/Materials (discovered 3 exits: [*Mat] / [*Min x2]) -10/Mines (discovered 1 exit: [*Mat]) History --------- Turn | Location | Event 23 | -11/Scrapyard | Discovered new exit (range 15) 76 | -11/Scrapyard | Entered Materials 305 | -10/Materials | Build established: Mutant 420 | -10/Materials | Discovered new exit (range 5) 512 | -10/Materials | Discovered new exit (range 3) 677 | -10/Materials | Discovered new exit (range 8) 829 | -10/Materials | Entered Mines 879 | -10/Mines | Assembled infested the area 884 | -10/Mines | Assisted by a Guerilla fighting off Assembled 960 | -10/Mines | Discovered new exit (range 13) 1005 | -10/Mines | Core integrity fell below 50% 1186 | -10/Mines | Core integrity fell below 20% 1288 | -10/Mines | Destroyed by S-10 Pest with Light Assault Rifle Last Messages --------------- G-34 Mercenary destroyed. Seismic Survey Station disabled. G-47 Trooper destroyed. Dropped Assault Rifle. Acquired Sml. Laser. Acquired 50 matter. Acquired 16 matter. Acquired 1 matter. Acquired 20 matter. Ion Engine destroyed. System corrupted by crushing effect (+5). Lgt. Treads destroyed. System corrupted by crushing effect (+1). Destroyed Asb. Hover Unit. as-62198 destroyed. Acquired 11 matter. System corrupted: Component data lost. System corrupted: Sml. Laser targeting data glitched. System corrupted: Sml. Laser failed to cycle. Sml. Laser destroyed. Map ----- +----------------------------------------------------+ | | | | | | | | | | | | | | | | | ?????????????????????????????????????????????????? | | ??####???????????????????????????????????????????? | | ?## #####??????????????????????????????????????? | | ## ## ######?????????????????????????????????? | | #?????#####???????????????????????? | | < ### ####### ##??????????????????????? | | ### ##?# ########???????????????? | | #??## #??# ?????????????? | | ####????# #??######## #######?????????????????? | | ????????# #######???# ########????????????????? | | #######?# ##?## ##???????????????? | | #?# ### ##??????????????? | | " """ #?## #### u ????????????? | | " """ #??# #??#k ## ????????????? | | " """ #??# #??# ##??#### ?????????????? | | = #### #?## ##??????????????????????? | | " """= ### k s##??????????????????????? | | " """=####### ## @##?????????????????????? | | " """ #???## #### ########??????????????? | | #??## ##??## #??????????????? | | " """ #??# ##????## ###### #??????????????? | | " """ #??# #??????# ##????#=#??????????????? | | " """ #??## #??????## ###?????#%####???????????? | | #???## #???????###???????# ## ???????????? | | #######????# #######???????????#%##%#?##########? | | ???????????# #???????????#*##%#?# #? | | ?????########### ## #????########[##*### #? | | ?????# # ## %===! = #? | | ?????# [ % #????############### """ #? | | ?????# # == # #??????????????????# "" #? | | ?????# # # ???????????????#[!"" #? | | ?????# %* #####??????????????# % #? | | ?????# = #??????????????????# " " #? | | ?????# ##??????????????????# "" #? | | ?????###### #???????????????????# """ #? | | ??????????## #####?????????????????# #? | | ???????????# ##????????????????##########? | | ???????????## % "#?????????????????????????? | | ????????????# "# ???????????????????? | | ????????????## ##?? ??????????????????? | | ?????????????# #????? ????????????????????? | | ????????????# #??????##!%*?????????????????????? | +----------------------------------------------------+ Best States ------------- Heat Dissipation 25 Energy Generation 10 Energy Capacity 250 Matter Stores 300 Matter Capacity 300 Sight Range 16 Robot Scan Range 10 Terrain Scan Density 10 Weapon Shielding 33 Evasion (%) 40 Recoil Reduction 2 Item Schematics ----------------- None Robot Schematics ------------------ None Fabricated ------------ Nothing Alien Tech Used ----------------- None Achievements -------------- Backstab Challenges ------------ None Game ------ Seed GreatXenonThrusters Manual? 0 Play Time 00:14:07 Cumulative 6.3 hours Start 2020.07.13 @ 22:33:52 End 2020.07.13 @ 22:47:42 Sessions 1 Manual Loads 0 Difficulty Rogue Special Mode None Game No. 7 Rogue 7 Adventurer 0 Explorer 0 Win Type - Total 0 Types 0/0/0/0/0/0/0 Lore% 3 Gallery% 11 Achievement% 10 Wizard Run 0 Options --------- ASCII 0 Keyboard 1 Movement Vi Keybinds 0 Fullscreen 2 Font 12/Terminus Map View 83x54 Tactical HUD 0 Map Filters NONE Filters NONE Steam 1 RUN: 196d116c-44d0-44dc-94df-56114bc49f97